bitfinex/quotes_ETHUSD_20241124
["timestamp","ask_amount","ask_price","bid_price","bid_amount"]
[1732407922398,0.55,3411.3,3410.1,0.32117778]
[1732407922740,0.59061587,3412.9,3410.9,0.7724]
[1732407922900,0.272651,3412.8,3411.1,0.7724]
[1732407923102,0.05484682,3412.7,3411.3,0.7724]
[1732407923296,2.81667342,3413.2,3411.3,0.7724]
[1732407923540,0.60941256,3413.1,3411.3,0.7724]
[1732407923723,0.27273557,3413.0,3411.3,0.7724]
[1732407923923,0.32766381,3412.9,3411.3,0.7724]
[1732407924254,0.27273557,3412.8,3411.3,0.7724]
[1732407924547,0.55,3412.6,3411.3,0.7724]
[1732407924852,0.55,3412.4,3411.3,1.0646]
[1732407925052,0.55,3412.4,3411.3,0.7724]
[1732407925507,0.66942558,3412.5,3411.5,0.7724]
[1732407925712,0.72865577,3413.3,3411.5,0.7724]
[1732407926006,0.32787881,3413.0,3411.7,0.7724]
[1732407926205,0.27290986,3412.9,3411.8,0.02930661]
[1732407926409,0.27290986,3412.8,3411.9,0.7724]
[1732407926605,0.04802659,3412.8,3412.0,0.02930419]
[1732407926926,0.005,3413.5,3411.2,3.0]
[1732407926927,0.005,3413.5,3412.1,0.7724]
[1732407927243,0.3280671,3413.4,3412.1,0.7724]
[1732407927452,0.5879094,3413.3,3412.1,0.7724]
[1732407927611,0.27295138,3413.2,3412.1,0.7724]
[1732407927809,0.27295138,3413.1,3412.3,0.7724]
[1732407928007,0.05505035,3413.2,3412.4,3.7029]
[1732407928209,0.04809783,3413.0,3412.4,3.7029]
[1732407928410,0.04838173,3413.1,3412.4,3.7029]
[1732407928640,0.0483105,3412.9,3412.4,2.9305]
[1732407928841,0.04834612,3413.0,3412.5,0.80169888]
[1732407929044,0.04827488,3412.8,3412.6,2.9303]
[1732407929241,0.005,3413.5,3412.6,2.9303]
[1732407929450,0.27289661,3413.4,3412.6,2.9303]
[1732407929652,0.04848857,3413.4,3412.6,2.9303]
[1732407929959,0.55,3413.3,3412.6,2.9303]
[1732407930135,0.04841735,3413.2,3412.6,2.9303]
[1732407930340,0.55,3413.3,3412.6,2.9303]
[1732407930648,0.04841735,3413.2,3412.6,2.9303]
[1732407931051,0.55,3413.3,3412.6,2.9303]
[1732407931355,0.04841735,3413.2,3412.6,2.9303]
[1732407931529,0.55,3413.3,3412.6,2.9303]
[1732407931717,0.04841735,3413.2,3412.7,0.7724]
[1732407931916,0.005,3413.5,3412.8,3.30037]
[1732407932147,0.005,3413.5,3412.9,0.7724]
[1732407932363,0.005,3413.5,3413.0,2.93]
[1732407933067,0.005,3413.5,3413.0,2.95929621]
[1732407933228,0.005,3413.5,3413.0,3.33246583]
[1732407933979,0.005,3413.5,3413.0,2.93]
[1732407935237,0.55,3413.3,3413.0,2.93]
[1732407936485,0.005,3413.5,3413.0,2.93]
[1732407936770,0.55,3413.2,3413.0,2.93]
[1732407937162,0.59346107,3413.1,3413.0,2.93]
[1732407937366,0.04346107,3413.1,3413.0,2.93]
[1732407937540,0.005,3413.5,3413.0,2.93]
[1732407937875,0.55,3413.3,3413.0,2.93]
[1732407938238,0.04345531,3413.2,3413.0,2.93]
[1732407938476,0.005,3413.5,3413.0,2.93]
[1732407938782,0.04350877,3413.4,3413.0,2.93]
[1732407939273,0.55,3413.3,3413.0,2.93]
[1732407940868,0.005,3413.5,3413.0,2.93]
[1732407941277,0.55,3413.3,3413.0,2.93]
[1732407944367,0.55,3413.1,3413.0,2.93]
[1732407944694,0.04348863,3413.1,3413.0,2.93]
[1732407944881,0.55,3413.1,3413.0,2.93]
[1732407945055,0.59348863,3413.1,3413.0,2.93]
[1732407945257,0.04348863,3413.1,3413.0,2.93]
[1732407945478,0.005,3413.5,3413.0,2.93]
[1732407945900,0.55,3413.3,3413.0,2.93]
[1732407946059,0.04348681,3413.2,3413.1,0.814]
[1732407946389,0.55,3413.3,3413.1,0.814]
[1732407949262,0.005,3413.5,3413.0,2.93]
[1732407949462,0.55,3413.3,3413.0,2.93]
[1732407949664,3.55,3413.3,3413.0,2.93]
[1732407949915,0.55,3413.1,3413.0,2.93]
[1732407950208,0.593465,3413.1,3413.0,2.93]
[1732407950363,0.86612328,3413.1,3413.0,2.93]
[1732407950562,1.56995295,3413.1,3413.0,2.93]
[1732407951997,1.56995295,3413.1,3411.7,0.02930531]
[1732407952202,3.55,3412.7,3411.6,0.814]
[1732407952373,0.55,3412.5,3411.6,0.814]
[1732407952573,0.55,3412.3,3411.6,0.814]
[1732407952898,0.04818531,3412.2,3411.6,0.814]
[1732407953106,0.55,3412.1,3411.6,0.814]
[1732407953273,0.04811404,3412.0,3411.6,0.814]
[1732407953473,0.55,3411.9,3411.6,0.814]
[1732407953780,0.05490601,3411.8,3411.6,0.814]
[1732407953961,0.55,3412.6,3411.6,0.814]
[1732407954308,0.55,3412.4,3411.6,0.814]
[1732407954602,0.05510965,3412.3,3411.6,0.814]
[1732407955998,0.04818531,3412.2,3411.6,0.814]
[1732407956379,0.55,3412.6,3411.6,0.814]
[1732407956580,0.55,3412.4,3411.6,0.814]
[1732407956793,0.04822094,3412.3,3411.6,0.814]
[1732407956987,0.55,3412.2,3411.6,0.814]
[1732407957295,0.04814968,3412.1,3411.6,0.814]
[1732407957501,0.55,3412.6,3411.6,0.814]
[1732407957502,0.88666734,3412.6,3411.6,0.814]
[1732407957705,0.05519109,3412.5,3411.6,0.814]
[1732407957916,0.55,3412.4,3411.6,0.814]
[1732407958261,0.55,3412.2,3411.6,0.814]
[1732407958468,0.0550282,3412.1,3411.6,0.814]
[1732407958692,0.55,3412.0,3411.6,0.814]
[1732407958898,0.0480784,3411.9,3411.6,0.814]
[1732407960030,0.55,3412.5,3411.6,0.814]
[1732407960229,0.04804276,3411.8,3411.6,0.814]
[1732407960412,0.92033408,3412.5,3411.6,0.814]
[1732407960927,0.55,3412.3,3411.6,0.814]
[1732407961129,0.04818531,3412.2,3411.6,0.814]
[1732407961496,0.55,3412.1,3411.6,0.814]
[1732407961796,0.04811404,3412.0,3411.6,0.814]
[1732407963445,3.57315921,3413.1,3411.6,0.814]
[1732407963446,0.55,3412.7,3411.6,0.814]
[1732407963750,0.55,3412.7,3410.9,0.02931009]
[1732407963751,0.04297974,3412.6,3411.8,0.8304]
[1732407964047,0.57315921,3413.1,3411.4,0.8304]
[1732407964228,0.3555,3413.4,3411.4,0.8304]
[1732407964229,0.04294807,3412.5,3411.7,2.81667342]
[1732407964412,0.005,3413.5,3411.9,0.8304]
[1732407964606,0.2728152,3413.4,3412.1,0.8304]
[1732407964921,0.04332167,3413.4,3412.3,0.8304]
[1732407965123,0.04332167,3413.4,3412.5,0.8304]
[1732407965831,0.04332167,3413.4,3412.6,0.02930161]
[1732407966169,0.04332167,3413.4,3412.5,0.8304]
[1732407967044,0.55,3413.3,3412.6,0.02930015]
[1732407967222,0.55,3413.3,3412.5,0.8304]
[1732407967420,0.55,3413.1,3412.5,0.8304]
[1732407967817,0.04329353,3413.0,3412.5,0.8304]
[1732407968508,0.04329353,3413.0,3412.6,0.85969956]
[1732407968703,0.005,3413.5,3412.6,0.85969956]
[1732407970549,0.005,3413.5,3412.7,0.8304]
[1732407971163,0.005,3413.5,3412.8,0.02929666]
[1732407971353,0.005,3413.5,3412.9,0.8304]
[1732407971557,0.005,3413.5,3413.0,0.02929665]
[1732407972536,0.005,3413.5,3412.9,0.8304]
[1732407974256,0.005,3413.5,3412.3,0.8051]
[1732407974420,0.005,3413.5,3412.3,1.12191701]
[1732407974622,0.55,3413.3,3412.3,1.12191701]
[1732407975020,0.55,3413.1,3412.3,1.12191701]
[1732407975322,0.55,3413.1,3412.3,0.8051]
[1732407976823,0.55,3413.1,3412.4,2.9302]
[1732407977066,0.55,3413.4,3412.4,2.9302]
[1732407977248,0.55,3412.9,3412.4,2.9302]
[1732407977773,0.55,3412.7,3412.4,2.9302]
[1732407978854,0.55,3412.7,3412.5,0.8051]
[1732407980571,0.005,3413.5,3412.5,1.17863]
[1732407980742,0.04350874,3413.4,3412.5,1.17863]
[1732407981203,0.04350874,3413.4,3412.6,2.9303]
[1732407981845,0.55,3413.3,3412.6,2.9303]
[1732407982182,0.55,3413.1,3412.6,2.9303]
[1732407982340,0.04343136,3413.0,3412.7,0.8051]
[1732407982544,0.005,3413.5,3412.9,0.8051]
[1732407982743,0.005,3413.5,3413.1,0.8051]
[1732407982940,0.005,3413.5,3413.2,2.9298]
[1732407983185,0.005,3413.5,3413.2,3.30621939]
[1732407984775,0.005,3413.5,3413.3,0.8051]
[1732407985181,0.005,3413.5,3413.3,0.83439383]
[1732407985384,0.005,3413.5,3413.4,2.9296]
[1732407992204,0.005,3413.5,3413.4,3.7363]
[1732407992360,0.005,3413.5,3413.4,4.17686574]
[1732407992911,0.005,3413.5,3413.4,4.55195882]
[1732407993127,0.005,3413.5,3413.4,4.14757194]
[1732407993273,2.81667342,3416.9,3414.6,0.8067]
[1732407993477,1.168964,3416.9,3415.4,0.8124]
[1732407993718,0.74847892,3417.3,3415.5,2.9278]
[1732407994098,1.91728892,3417.3,3415.5,2.9278]
[1732407994491,2.81667342,3417.4,3415.5,2.95707365]
[1732407994886,2.81667342,3417.0,3415.5,2.9278]
[1732407995296,3.0,3416.9,3415.5,2.9278]
[1732407996609,4.168809,3417.3,3415.5,3.7402]
[1732407996909,0.58136612,3417.4,3415.5,3.7402]
[1732407997071,0.58136612,3417.4,3415.5,3.76947145]
[1732407997506,2.81667342,3417.3,3415.5,3.76947145]
[1732407998196,3.0,3417.2,3415.5,3.76947145]
[1732407998370,3.0,3417.2,3415.5,3.7402]
[1732408000787,2.81667342,3418.0,3415.6,0.8124]
[1732408001000,0.21084506,3417.9,3415.8,0.8124]
[1732408001176,0.21084506,3417.9,3416.0,0.8124]
[1732408001376,0.1556,3417.7,3416.1,0.02926558]
[1732408001573,0.1556,3417.5,3416.1,2.9273]
[1732408001818,0.04816183,3417.4,3416.1,2.9273]
[1732408002335,0.55,3417.3,3416.1,2.9273]
[1732408002496,0.1556,3417.2,3416.1,2.9273]
[1732408002820,0.55,3417.1,3416.1,2.9273]
[1732408002992,0.55,3416.9,3416.1,2.9273]
[1732408003196,0.55,3416.7,3416.1,2.9273]
[1732408003379,0.55,3416.5,3416.1,2.9273]
[1732408008379,0.04838373,3416.4,3416.1,2.9273]
[1732408010711,0.55,3416.3,3416.1,2.9273]
[1732408011086,0.59831263,3416.2,3416.1,2.9273]
[1732408013622,0.04831263,3416.2,3416.1,2.9273]
[1732408013917,0.1556,3416.9,3416.1,4.04613]
[1732408014121,0.1556,3416.9,3416.1,3.7534]
[1732408014290,0.04313413,3416.8,3416.1,3.7534]
[1732408014500,4.168557,3418.1,3418.0,11.59023987]
[1732408014689,7.97559981,3418.1,3418.0,11.59023987]
[1732408014888,8.36599758,3418.1,3418.0,11.59023987]
[1732408015091,8.52159758,3418.1,3418.0,11.59023987]
[1732408016233,9.17159758,3418.1,3418.0,11.08283988]
[1732408016526,12.44263476,3418.1,3418.0,11.08283988]
[1732408017034,12.34263476,3418.1,3418.0,11.08283988]
[1732408017592,12.07159758,3418.1,3418.0,11.08283988]
[1732408017915,12.3428837,3418.1,3418.0,11.08283988]
[1732408019436,13.02057985,3418.1,3418.0,11.08283988]
[1732408020102,12.92057985,3418.1,3418.0,11.08283988]
[1732408020302,13.02057985,3418.1,3418.0,10.06748756]
[1732408020518,12.92057985,3418.1,3418.0,10.06748756]
[1732408020927,13.02057985,3418.1,3418.0,10.06748756]
[1732408021093,12.74929373,3418.1,3418.0,10.06748756]
[1732408021295,12.92126554,3418.1,3418.0,10.06748756]
[1732408021533,13.02126554,3418.1,3418.0,10.06748756]
[1732408021689,13.02126554,3418.1,3418.0,8.90458756]
[1732408021894,12.92126554,3418.1,3418.0,8.90458756]
[1732408022227,13.02126554,3418.1,3418.0,8.90458756]
[1732408022433,13.02126554,3418.1,3418.0,8.67712426]
[1732408022651,13.02126554,3418.1,3418.0,8.27746849]
[1732408022824,13.02126554,3418.1,3418.0,5.12783407]
[1732408023148,13.02126554,3418.1,3418.0,3.34343407]
[1732408023859,12.44356939,3418.1,3418.0,1.7844]
[1732408024014,12.54356939,3418.1,3418.0,1.7844]
[1732408024210,0.1556,3417.9,3416.2,0.7959]
[1732408024439,0.1556,3417.2,3416.2,0.7959]
[1732408024613,0.27197181,3417.1,3416.2,0.7959]
[1732408024816,0.1556,3417.2,3416.2,0.7959]
[1732408025040,0.27312986,3417.1,3416.2,0.7959]
[1732408025205,0.27312986,3417.0,3416.2,0.7959]
[1732408025405,3.37922734,3417.2,3416.2,0.7959]
[1732408026349,0.55,3417.1,3416.2,0.7959]
[1732408026556,0.55,3416.9,3416.2,0.7959]
[1732408028559,3.47646,3417.1,3416.2,0.7959]
[1732408028912,2.92654,3417.0,3416.2,0.7959]
[1732408029119,3.47663,3416.9,3415.4,0.7959]
[1732408030543,3.55,3416.9,3415.4,0.7959]
[1732408030718,0.55,3416.7,3415.4,0.7959]
[1732408031146,0.55,3416.7,3415.4,0.82517485]
[1732408031960,0.55,3416.9,3415.5,0.7959]
[1732408032977,0.55,3416.7,3415.5,0.7959]
[1732408037571,0.55,3416.5,3415.5,0.7959]
[1732408037724,0.55,3416.3,3415.5,0.7959]
[1732408038065,0.55,3416.7,3415.5,0.7959]
[1732408038273,0.55,3416.5,3415.5,0.7959]
[1732408038419,0.55,3416.3,3415.5,0.7959]
[1732408038624,0.55,3416.5,3415.5,0.7959]
[1732408038872,0.55,3416.3,3415.5,0.7959]
[1732408039164,0.75870684,3416.3,3415.5,0.7959]
[1732408039655,0.55,3416.3,3415.6,0.0292754]
[1732408039860,0.55,3416.3,3415.1,0.7797]
[1732408040060,0.55,3416.3,3415.3,0.7797]
[1732408040230,0.55,3416.3,3415.4,0.80897317]
[1732408042062,0.55,3416.3,3415.4,0.7797]
[1732408042760,0.55,3416.3,3415.4,0.80897523]
[1732408042920,0.55,3416.3,3415.4,0.7797]
[1732408043748,0.55,3416.6,3415.4,0.7797]
[1732408043934,0.55,3416.4,3415.4,0.7797]
[1732408044141,0.55,3416.6,3415.4,0.7797]
[1732408044438,0.55,3416.4,3415.4,0.7797]
[1732408044656,0.2730213,3416.3,3415.4,0.7797]
[1732408044966,0.55,3416.2,3415.4,0.7797]
[1732408047786,0.55,3416.0,3415.4,0.7797]
[1732408047945,0.55,3416.2,3415.4,0.7797]
[1732408048144,0.55,3416.0,3415.4,0.7797]
[1732408051041,0.55,3416.3,3415.4,0.7797]
[1732408051244,0.55,3416.1,3415.4,0.7797]
[1732408051484,0.55,3415.9,3415.4,0.7797]
[1732408052748,0.55,3416.2,3415.4,0.7797]
[1732408053068,0.55,3416.0,3415.4,0.7797]
[1732408053268,0.27331209,3415.9,3415.4,0.7797]
[1732408053593,0.27331209,3415.8,3415.4,0.7797]
[1732408053800,0.27331209,3415.7,3415.4,0.7797]
[1732408053964,0.27331209,3415.9,3415.4,0.7797]
[1732408054173,0.27333042,3415.8,3415.4,0.7797]
[1732408054401,0.27332231,3415.7,3415.4,0.7797]
[1732408054694,1.22138768,3416.3,3415.4,0.7797]
[1732408054881,0.55,3416.1,3415.4,0.7797]
[1732408055067,0.55,3415.9,3415.4,0.7797]
[1732408055269,0.27332307,3415.8,3415.4,0.7797]
[1732408055572,0.27332307,3415.7,3415.4,0.7797]
[1732408055888,0.67138768,3416.3,3415.4,0.7797]
[1732408055889,0.55,3416.2,3415.4,0.7797]
[1732408056090,0.27331553,3416.1,3415.4,0.7797]
[1732408056254,0.82331553,3416.0,3415.4,0.7797]
[1732408056455,0.27331553,3415.9,3415.4,0.7797]
[1732408056655,0.27331553,3415.8,3415.4,0.7797]
[1732408056867,0.55,3416.1,3415.4,0.7797]
[1732408057090,0.55,3415.9,3415.4,0.7797]
[1732408057392,0.27330575,3415.8,3415.4,0.7797]
[1732408057968,0.22330575,3415.8,3415.4,0.7797]
[1732408058287,0.55,3416.0,3415.4,0.7797]
[1732408062497,1.48724625,3416.4,3415.4,0.7797]
[1732408062498,0.55,3416.3,3415.4,0.7797]
[1732408062699,0.69872463,3416.3,3415.4,0.7797]
[1732408066169,2.81667342,3416.1,3415.4,0.7797]
[1732408066515,0.55,3415.6,3414.3,0.7643]
[1732408067095,0.1556,3415.5,3414.3,0.7643]
[1732408067396,3.36667342,3415.4,3414.3,0.7643]
[1732408067616,0.55,3415.2,3414.3,0.7643]
[1732408068385,3.0,3415.7,3414.5,0.7643]
[1732408068564,3.0,3415.7,3414.6,0.7643]
[1732408068911,0.55,3415.6,3414.6,0.7643]
[1732408069211,0.55,3415.6,3414.7,0.79358068]
[1732408069502,2.81667342,3416.2,3414.7,0.79358068]
[1732408069807,0.37195615,3416.1,3414.7,0.79358068]
[1732408069968,0.2730978,3416.0,3414.7,0.79358068]
[1732408070306,0.2730978,3415.9,3414.7,0.79358068]
[1732408070510,0.2730978,3416.1,3414.7,0.79358068]
[1732408070669,0.2730978,3416.0,3414.8,2.9279]
[1732408071004,0.2730978,3415.9,3415.0,0.7643]
[1732408071172,0.55,3416.1,3415.1,3.6925]
[1732408071409,0.55,3416.1,3415.2,0.7643]
[1732408071745,2.81667342,3417.5,3415.4,0.7643]
[1732408071956,2.81667342,3417.5,3415.3,3.35241513]
[1732408071957,0.27307108,3417.4,3415.6,0.7643]
[1732408072244,0.27307108,3417.3,3415.8,0.7643]
[1732408072424,0.27307108,3417.3,3416.0,0.7643]
[1732408072628,0.27307108,3417.2,3416.2,0.7643]
[1732408072834,0.27307108,3417.1,3416.3,3.6914]
[1732408073010,0.27307108,3417.0,3416.4,0.7643]
[1732408073206,0.32695008,3417.3,3416.4,0.7643]
[1732408073410,0.27282553,3417.2,3416.4,0.7643]
[1732408073649,0.27282553,3417.1,3416.4,0.7643]
[1732408073859,0.55,3417.2,3416.4,0.7643]
[1732408074004,0.27283125,3417.1,3416.4,0.7643]
[1732408074210,0.55,3417.2,3416.4,0.7643]
[1732408074423,0.55,3417.3,3416.5,0.8264]
[1732408074657,0.55,3417.1,3416.5,0.8264]
[1732408075025,0.55,3417.3,3416.6,2.9269]
[1732408075211,0.55,3417.6,3416.7,0.8264]
[1732408075415,0.27258338,3417.5,3416.8,2.95596533]
[1732408075738,2.81667342,3417.8,3416.9,0.8264]
[1732408075922,0.27257497,3417.7,3417.0,2.9265]
[1732408076245,0.2725748,3417.6,3417.0,2.9265]
[1732408076408,3.17036242,3417.8,3417.0,2.9265]
[1732408076611,0.58946765,3417.7,3417.0,2.9265]
[1732408076809,0.27243141,3417.6,3417.0,2.9265]
[1732408077056,0.55,3417.5,3417.0,2.9265]
[1732408077212,0.55,3417.6,3417.0,2.9265]
[1732408078114,0.55,3417.7,3417.0,2.9265]
[1732408078424,0.55,3417.7,3417.1,0.8264]
[1732408078623,0.55,3417.7,3417.2,0.8264]
[1732408078975,5.74167342,3418.8,3417.1,0.37529]
[1732408078976,2.81667342,3418.5,3417.3,2.9263]
[1732408079181,0.27221197,3418.4,3417.4,0.8264]
[1732408079345,0.27221197,3418.3,3417.5,2.9261]
[1732408079542,0.27221197,3418.2,3417.5,2.9261]
[1732408079778,0.27205607,3418.1,3417.5,2.9261]
[1732408080078,0.30888854,3418.4,3417.5,2.9261]
[1732408080283,0.82202631,3418.3,3417.5,3.30135]
[1732408080579,0.55,3418.1,3417.5,3.30135]
[1732408081084,0.55,3418.3,3417.5,3.30135]
[1732408081379,0.55,3418.1,3417.6,0.8264]
[1732408081588,0.55,3418.1,3417.7,2.9259]
[1732408081891,0.55,3418.3,3417.7,2.9259]
[1732408082087,0.55,3418.1,3417.7,2.9259]
[1732408082257,0.55,3418.3,3417.7,2.9259]
[1732408085043,0.55,3418.0,3417.7,2.9259]
[1732408085884,3.0,3418.5,3417.8,0.8264]
[1732408086178,0.27154323,3418.4,3417.8,0.8264]
[1732408086345,3.0,3418.5,3417.8,0.8264]
[1732408086564,0.27148253,3418.4,3417.8,0.8264]
[1732408086765,3.0,3418.5,3417.8,0.8264]
[1732408086977,2.81667342,3418.2,3417.8,0.8264]
[1732408087295,3.55,3418.1,3417.8,0.8264]
[1732408088287,0.55,3418.4,3417.8,0.8264]
[1732408088478,3.55,3418.2,3417.8,0.8264]
[1732408090876,3.55,3418.2,3417.7,2.9259]
[1732408091114,4.26778152,3418.2,3417.7,2.9259]
[1732408094003,4.98831496,3418.2,3417.7,2.9259]
[1732408094206,0.55,3418.0,3417.7,2.9259]
[1732408094814,0.55,3418.1,3417.7,2.9259]
[1732408095030,0.55,3417.9,3417.7,2.9259]
[1732408096039,3.0,3417.8,3417.7,2.9259]
[1732408096210,3.82176771,3417.8,3417.7,2.9259]
[1732408096821,6.74761771,3417.8,3417.7,2.9259]
[1732408097437,6.74786086,3417.8,3417.7,2.9259]
[1732408097619,8.24609217,3417.8,3417.7,2.64232181]
[1732408097815,8.24609217,3417.8,3417.7,2.21840949]
[1732408098548,0.55,3417.7,3416.6,0.8026]
[1732408098753,0.55,3417.3,3416.6,0.8026]
[1732408098924,0.55,3417.1,3416.6,0.8026]
[1732408099126,0.55,3417.3,3416.6,0.8026]
[1732408099626,0.2722706,3417.2,3416.6,0.8026]
[1732408099842,3.0,3418.0,3416.6,0.8026]
[1732408100048,2.81667342,3418.1,3416.0,2.84594213]
[1732408100049,0.27246233,3417.9,3416.7,0.83186309]
[1732408100264,0.27246233,3417.8,3416.7,0.83186309]
[1732408100451,2.81667342,3418.1,3416.7,0.83186309]
[1732408100651,0.27264586,3418.0,3416.7,0.83186309]
[1732408100827,0.27264586,3417.9,3416.7,0.83186309]
[1732408101024,2.81667342,3418.1,3416.7,0.83186309]
[1732408101267,0.27284056,3418.0,3416.7,0.83186309]
[1732408101662,0.27284056,3417.9,3416.7,0.8026]
[1732408101977,0.27284056,3417.8,3416.9,0.8026]
[1732408102176,0.55,3417.6,3416.9,0.8026]
[1732408102588,0.55,3417.4,3416.9,0.8026]
[1732408103284,2.81667342,3418.5,3416.6,0.8026]
[1732408103594,0.27293143,3418.4,3416.7,0.83185943]
[1732408103906,2.81667342,3418.5,3416.7,0.83185943]
[1732408103907,0.27293143,3418.3,3416.9,0.8026]
[1732408104069,0.27293143,3418.2,3417.1,0.8026]
[1732408104265,0.27293143,3418.1,3417.1,0.8026]
[1732408104460,3.09834076,3418.5,3417.1,0.8026]
[1732408104461,0.55,3417.9,3417.1,0.8026]
[1732408105405,0.2729523,3417.8,3417.1,0.8026]
[1732408105611,0.55,3417.9,3417.1,0.8026]
[1732408106109,0.27295591,3417.8,3417.1,0.8026]
[1732408106401,0.55,3417.9,3417.1,0.8026]
[1732408108285,0.55,3417.9,3417.3,0.8026]
[1732408110327,0.55,3417.9,3417.4,0.83185905]
[1732408110827,1.04149198,3419.0,3417.4,0.83185905]
[1732408110828,0.1506902,3419.0,3418.2,0.8026]
[1732408111040,2.81667342,3420.5,3418.6,0.8026]
[1732408111227,0.2728185,3420.4,3418.8,0.8026]
[1732408111455,0.58176769,3420.3,3419.0,0.8026]
[1732408111619,0.30894919,3420.3,3419.1,0.83184061]
[1732408111941,2.81667342,3420.1,3419.1,0.83184061]
[1732408112147,2.81667342,3420.6,3419.1,0.83184061]
[1732408112349,3.0,3420.5,3419.3,0.8026]
[1732408112507,0.793,3420.5,3419.4,2.9245]
[1732408112710,3.0,3420.2,3419.4,2.9245]
[1732408112917,0.60886654,3420.1,3419.4,2.9245]
[1732408113244,0.60886654,3420.1,3419.5,0.8026]
[1732408113453,0.60886654,3420.1,3419.6,2.9243]
[1732408113754,3.0,3420.6,3419.6,2.9243]
[1732408113963,0.27172831,3420.5,3419.6,2.9243]
[1732408114255,3.0,3420.6,3419.6,2.9243]
[1732408114754,0.55,3420.5,3419.6,2.9243]
[1732408115715,2.81667342,3420.3,3419.6,2.9243]
[1732408115918,0.55,3420.0,3419.6,2.9243]
[1732408116811,3.0,3420.5,3419.7,0.826]
[1732408117016,1.77900534,3420.4,3419.7,0.826]
[1732408117840,1.77900534,3420.4,3419.6,2.9243]
[1732408119217,3.55,3420.2,3419.6,2.9243]
[1732408121027,2.92392,3420.1,3419.6,2.9243]
[1732408121222,1.3409,3420.0,3419.6,2.9243]
[1732408121764,4.3409,3420.0,3419.6,2.9243]
[1732408122258,1.3409,3420.0,3419.6,2.9243]
[1732408124434,2.81667342,3419.9,3419.6,2.9243]
[1732408124629,3.55,3419.8,3419.6,2.9243]
[1732408124825,1.91316334,3419.7,3419.6,2.9243]
[1732408125220,7.83739334,3419.7,3419.6,2.9243]
[1732408125656,7.83739334,3419.7,3419.6,2.85210001]
[1732408125967,8.62829334,3419.7,3419.6,2.51100001]
[1732408126144,9.6269094,3419.7,3419.6,2.51100001]
[1732408126656,9.62699285,3419.7,3419.6,2.30800001]
[1732408126959,9.62699285,3419.7,3419.6,1.45040001]
[1732408127289,3.55,3419.1,3418.0,0.826]
[1732408127424,3.55,3418.9,3418.0,0.826]
[1732408129244,4.3482,3418.9,3418.0,0.826]
[1732408129450,3.55,3418.9,3418.0,0.826]
[1732408130547,3.0,3419.3,3418.2,0.7691]
[1732408130755,3.0,3419.3,3418.4,0.7691]
[1732408131062,0.58166734,3419.2,3418.4,0.7691]
[1732408131262,3.0,3419.3,3418.4,0.7691]
[1732408131889,0.55,3419.2,3418.4,0.7691]
[1732408134882,3.0,3419.3,3418.4,0.7691]
[1732408137012,0.55,3419.2,3418.4,0.7691]
[1732408137302,0.55,3419.0,3418.4,0.7691]
[1732408140205,0.55,3419.2,3418.4,0.7691]
[1732408140391,0.55,3419.0,3418.4,0.7691]
[1732408140715,0.71352695,3419.6,3418.4,0.7691]
[1732408140869,0.55,3419.4,3418.6,0.7859]
[1732408141070,0.55,3419.4,3418.8,0.7859]
[1732408141301,0.55,3419.7,3418.8,0.7859]
[1732408141471,0.55,3419.5,3418.9,0.02924715]
[1732408141676,0.55,3419.5,3418.1,0.7859]
[1732408141868,0.55,3419.7,3418.2,0.81514579]
[1732408142072,0.55,3419.5,3418.2,0.81514579]
[1732408142281,0.55,3419.3,3418.2,0.81514579]
[1732408142497,0.55,3419.3,3418.2,0.7859]
[1732408142682,0.55,3419.4,3418.3,0.02924971]
[1732408142894,0.55,3419.2,3417.7,0.7859]
[1732408143092,0.55,3419.2,3417.9,0.7859]
[1732408143373,3.67527,3421.3,3418.8,0.7859]
[1732408143599,2.81667342,3420.5,3419.0,0.7859]
[1732408143817,0.27237124,3420.4,3419.2,0.7859]
[1732408144018,0.27237124,3420.3,3419.4,0.7859]
[1732408144191,0.27237124,3420.2,3419.4,0.7859]
[1732408144513,2.81667342,3420.5,3419.4,0.7859]
[1732408144675,0.27235934,3420.4,3419.4,0.7859]
[1732408144875,0.58126262,3420.3,3419.4,0.7859]
[1732408145080,0.27235934,3420.2,3419.4,0.7859]
[1732408145277,0.30890328,3420.3,3419.4,0.7859]
[1732408145623,2.81667342,3420.1,3419.4,0.7859]
[1732408145776,0.27235259,3420.0,3419.4,0.7859]
[1732408146101,0.55,3420.0,3419.4,0.7859]
[1732408146310,0.7524,3421.4,3419.4,0.7859]
[1732408146476,2.81667342,3420.8,3419.6,0.7859]
[1732408146800,0.27233943,3420.7,3419.7,0.81513593]
[1732408147115,0.27233943,3420.6,3419.7,0.81513593]
[1732408147278,2.81667342,3420.4,3419.7,0.81513593]
[1732408147478,2.81667342,3420.4,3419.7,0.7859]
[1732408148178,0.55,3420.5,3419.7,0.7859]
[1732408148914,0.55,3420.6,3419.7,0.7859]
[1732408149072,0.60466864,3420.6,3419.7,0.7859]
[1732408150279,2.81667342,3420.4,3419.7,0.7859]
[1732408150491,0.55,3420.3,3419.7,0.7859]
[1732408151591,2.81667342,3421.1,3419.9,0.7859]
[1732408151796,0.27197689,3421.0,3420.1,0.7859]
[1732408151993,0.63649805,3421.0,3420.1,0.7859]
[1732408152249,0.05483071,3421.0,3420.3,0.7859]
[1732408152719,0.0547902,3420.9,3420.3,0.7859]
[1732408152886,3.0,3421.6,3420.3,0.7859]